bitfinex/quotes_ETHUSD_20240925
["timestamp","ask_amount","ask_price","bid_price","bid_amount"]
[1727222618449,1.76590073,2656.6,2656.5,3.82180695]
[1727222618644,2.5501094,2656.6,2656.5,3.82180695]
[1727222618835,2.5501094,2656.6,2656.5,0.05745695]
[1727222619039,3.54571401,2656.6,2656.5,0.05745695]
[1727222619239,3.78303539,2656.6,2656.5,0.05745695]
[1727222619438,3.78307574,2656.6,2656.3,3.8033098]
[1727222619639,0.78430109,2656.4,2656.3,3.8033098]
[1727222619862,2.55020182,2656.4,2656.3,3.8033098]
[1727222622140,2.55020182,2656.4,2656.3,4.3033098]
[1727222622763,2.55048483,2656.4,2656.3,4.3033098]
[1727222623745,2.94235237,2656.4,2656.3,0.5387498]
[1727222624038,3.35382242,2656.4,2656.3,0.5387498]
[1727222626269,2.94235237,2656.4,2656.3,1.0387498]
[1727222626872,1.17645164,2656.4,2656.3,1.0387498]
[1727222627079,2.94292801,2656.4,2656.3,1.0387498]
[1727222629636,1.76647637,2656.4,2656.3,4.8033798]
[1727222629806,2.5511315,2656.4,2656.3,4.8033798]
[1727222630294,2.5511315,2656.4,2656.3,5.3033798]
[1727222630492,1.76647637,2656.4,2656.3,5.3033798]
[1727222630697,2.94292801,2656.4,2656.3,5.3033798]
[1727222631002,1.76647637,2656.4,2656.3,5.3033798]
[1727222631596,2.94423801,2656.4,2656.3,5.3033798]
[1727222631971,1.76778637,2656.4,2656.3,5.3033798]
[1727222632966,3.33200205,2656.4,2656.3,5.3033798]
[1727222633375,3.33200205,2656.4,2656.3,5.36102168]
[1727222634077,3.33200205,2656.4,2656.3,1.59639168]
[1727222634272,3.33200205,2656.4,2656.3,2.09639168]
[1727222634711,4.74625086,2656.4,2656.3,2.09639168]
[1727222635388,3.33200205,2656.4,2656.3,2.09639168]
[1727222635719,6.58490158,2656.4,2656.3,2.09639168]
[1727222636406,4.62338481,2656.4,2656.3,2.09639168]
[1727222636618,6.58581224,2656.4,2656.3,2.09639168]
[1727222636779,4.62338481,2656.4,2656.3,2.09639168]
[1727222638377,4.62409766,2656.4,2656.3,2.59639168]
[1727222638573,4.62409766,2656.4,2656.3,2.5387498]
[1727222640679,4.62507206,2656.4,2656.3,2.5387498]
[1727222642343,8.38956206,2656.4,2656.3,2.5387498]
[1727222642493,10.15931023,2656.4,2656.3,2.5387498]
[1727222642820,10.15931023,2656.4,2656.3,2.59651233]
[1727222643332,8.38956206,2656.4,2656.3,2.59651233]
[1727222643536,10.15969188,2656.4,2656.3,2.59651233]
[1727222644211,10.15969188,2656.4,2655.5,0.0387498]
[1727222644212,0.7831,2656.0,2655.5,0.0387498]
[1727222644417,1.57069562,2655.6,2655.5,0.0387498]
[1727222644623,4.75409573,2655.6,2655.5,0.0387498]
[1727222644806,4.75416556,2655.6,2655.5,0.0387498]
[1727222646938,2.55444487,2655.6,2655.5,5.01948529]
[1727222648298,1.7691513,2655.6,2655.5,5.01948529]
[1727222648501,2.55422472,2655.6,2655.5,5.01948529]
[1727222648700,1.7691513,2655.6,2655.5,5.01948529]
[1727222648940,2.55422472,2655.6,2655.5,5.01948529]
[1727222649302,2.55341994,2655.6,2655.5,5.01948529]
[1727222649532,2.55338492,2655.6,2655.5,5.01948529]
[1727222649741,0.70766052,2655.6,2655.5,5.01948529]
[1727222649899,0.70766052,2655.6,2655.5,8.01948529]
[1727222650107,2.98503724,2655.9,2655.6,3.76562]
[1727222650108,0.78507342,2655.9,2655.6,3.76562]
[1727222650350,0.78507342,2655.9,2655.8,4.51714]
[1727222650540,1.49229121,2655.9,2655.8,7.51714]
[1727222650738,0.70721779,2655.9,2655.8,9.13981775]
[1727222651240,1.7680421,2655.9,2655.8,9.13981775]
[1727222651410,0.70720756,2655.9,2655.8,9.13981775]
[1727222653602,0.70720756,2655.9,2655.8,6.13981775]
[1727222653832,0.70723499,2655.9,2655.8,6.13981775]
[1727222654144,2.55311398,2655.9,2655.8,6.13981775]
[1727222656344,2.55311398,2655.9,2655.8,4.51714]
[1727222658639,2.55382565,2655.9,2655.8,4.51714]
[1727222660560,2.55382474,2655.9,2655.8,4.51714]
[1727222660846,1.76875223,2655.9,2655.8,4.51714]
[1727222661051,2.55385092,2655.9,2655.8,4.51714]
[1727222661814,2.55382625,2655.9,2655.8,4.51714]
[1727222662830,1.76875223,2655.9,2655.8,4.51714]
[1727222663348,2.55383206,2655.9,2655.8,4.51714]
[1727222663555,2.55481061,2655.9,2655.8,4.51714]
[1727222663728,2.55481061,2655.9,2655.8,3.76534]
[1727222663919,2.9478081,2655.9,2655.7,3.76546]
[1727222664121,2.55482751,2655.8,2655.7,6.76546]
[1727222664545,1.76971293,2655.8,2655.7,6.76546]
[1727222664763,2.9478081,2655.8,2655.6,0.7759]
[1727222665067,3.18561084,2655.7,2655.5,3.8044098]
[1727222665216,2.94744469,2655.6,2655.5,3.8044098]
[1727222665621,1.76971293,2655.6,2655.5,3.8044098]
[1727222666043,2.94736394,2655.6,2655.5,3.8044098]
[1727222666242,1.76971293,2655.6,2655.5,4.5803098]
[1727222666468,2.55481905,2655.6,2655.5,0.0387498]
[1727222666624,2.94736394,2655.6,2655.5,0.0387498]
[1727222667357,1.76971293,2655.6,2655.5,0.0387498]
[1727222667565,4.09481031,2655.6,2655.5,0.0387498]
[1727222667748,5.51058637,2655.6,2655.5,0.0387498]
[1727222668353,3.70158831,2655.6,2655.5,0.0387498]
[1727222668937,2.5240422,2655.6,2655.5,0.0387498]
[1727222669137,5.51036542,2655.6,2655.5,0.0387498]
[1727222672651,3.93959731,2655.6,2655.5,0.0387498]
[1727222672829,3.94005886,2655.6,2655.5,0.0387498]
[1727222673163,3.94061473,2655.6,2655.5,0.0387498]
[1727222673340,3.70157308,2655.6,2655.5,0.0387498]
[1727222673537,3.94057506,2655.6,2655.5,0.0387498]
[1727222673731,5.51134317,2655.6,2655.5,0.0387498]
[1727222674954,3.70163721,2655.6,2655.5,0.0387498]
[1727222675140,3.94067846,2655.6,2655.5,0.0387498]
[1727222675462,3.70160788,2655.6,2655.5,0.0387498]
[1727222675828,3.9406547,2655.6,2655.5,0.0387498]
[1727222676260,3.70166646,2655.6,2655.5,0.0387498]
[1727222676462,4.75708626,2655.6,2655.5,0.0387498]
[1727222676768,2.94740033,2655.6,2655.5,0.0387498]
[1727222677439,3.18649392,2655.6,2655.5,0.0387498]
[1727222677764,1.77037588,2655.6,2655.5,0.0387498]
[1727222678671,2.94763981,2655.6,2655.5,0.0387498]
[1727222680139,3.73257205,2655.6,2655.5,4.5804098]
[1727222680366,2.55530812,2655.6,2655.5,4.5804098]
[1727222680569,1.77037588,2655.6,2655.5,4.5804098]
[1727222680767,2.94763981,2655.6,2655.5,4.5804098]
[1727222681073,2.94763981,2655.6,2655.5,3.8045098]
[1727222682382,1.17726393,2655.6,2655.5,3.8045098]
[1727222682546,2.94842748,2655.6,2655.5,3.8045098]
[1727222683748,1.77116355,2655.6,2655.5,3.8045098]
[1727222684479,2.94842748,2655.6,2655.5,3.8045098]
[1727222684984,1.77116355,2655.6,2655.5,3.8045098]
[1727222685655,2.94842748,2655.6,2655.5,3.8045098]
[1727222685852,1.77116355,2655.6,2655.5,3.8045098]
[1727222686058,2.94842748,2655.6,2655.5,3.8045098]
[1727222687052,2.94887803,2655.6,2655.5,3.8045098]
[1727222687259,2.94985236,2655.6,2655.5,3.8045098]
[1727222688554,2.95012935,2655.6,2655.5,3.8045098]
[1727222689146,2.95015496,2655.6,2655.5,3.8045098]
[1727222689772,4.76097443,2655.6,2655.5,3.8045098]
[1727222690349,3.34290599,2655.6,2655.5,3.8045098]
[1727222690746,4.76097443,2655.6,2655.5,3.8045098]
[1727222690941,3.34290599,2655.6,2655.5,3.8045098]
[1727222691837,4.76102343,2655.6,2655.5,3.8045098]
[1727222692083,3.34295499,2655.6,2655.5,3.8045098]
[1727222692745,3.34295499,2655.6,2655.5,4.3045098]
[1727222693388,4.76102343,2655.6,2655.5,4.3045098]
[1727222693770,3.34295499,2655.6,2655.5,4.3045098]
[1727222694682,4.7038429,2655.6,2655.5,0.5387498]
[1727222694845,6.12191134,2655.6,2655.5,0.5387498]
[1727222696861,6.12191134,2655.6,2655.5,1.0387498]
[1727222697284,4.55114323,2655.6,2655.5,1.0387498]
[1727222698149,6.12140055,2655.6,2655.5,1.0387498]
[1727222698452,6.12280192,2655.6,2655.5,1.0387498]
[1727222700788,4.02195669,2655.6,2655.5,1.0387498]
[1727222700992,4.02195669,2655.6,2655.5,1.5387498]
[1727222701459,5.98495853,2655.6,2655.5,1.5387498]
[1727222705095,5.98495853,2655.6,2655.5,2.0387498]
[1727222705401,3.73659009,2655.6,2655.5,10.78051987]
[1727222705691,1.96300184,2655.6,2655.5,12.15983862]
[1727222705893,1.4575438,2655.6,2655.5,12.70983862]
[1727222706084,2.3556022,2655.9,2655.8,4.54904]
[1727222706294,2.74820257,2656.1,2656.0,3.76506]
[1727222706606,2.74820257,2656.1,2656.0,4.88205383]
[1727222706960,2.74820257,2656.1,2656.0,5.66575383]
[1727222707158,2.74820257,2656.1,2656.0,6.90884821]
[1727222707386,2.74820257,2656.1,2656.0,5.79185438]
[1727222708690,2.74820257,2656.1,2656.0,6.90884821]
[1727222709060,2.74820257,2656.1,2656.0,5.79185438]
[1727222710073,2.74820257,2656.1,2656.0,5.00815438]
[1727222710294,2.74820257,2656.1,2655.9,3.76519]
[1727222710494,1.87849383,2656.4,2655.9,3.76519]
[1727222710803,1.95403935,2656.4,2655.9,3.76519]
[1727222711107,0.83704552,2656.4,2655.9,3.76519]
[1727222711269,0.78457493,2656.0,2655.9,3.76519]
[1727222711605,2.81767398,2656.0,2655.9,3.76519]
[1727222713320,1.64081902,2656.0,2655.9,3.76519]
[1727222713476,2.42521796,2656.0,2655.9,3.76519]
[1727222713822,0.68588761,2656.0,2655.9,4.57799]
[1727222714003,0.78439894,2656.1,2655.9,5.03377825]
[1727222714202,0.78439894,2656.1,2656.0,3.76506]
[1727222714399,0.68583528,2656.1,2656.0,3.76506]
[1727222714601,1.47023422,2656.1,2656.0,3.76506]
[1727222715320,1.4700229,2656.1,2656.0,3.76506]
[1727222715999,1.46997555,2656.1,2656.0,3.76506]
[1727222716713,1.46990383,2656.1,2656.0,3.76506]
[1727222716915,0.18275879,2656.2,2656.0,3.76506]
[1727222717305,4.3674147,2656.5,2656.1,0.753025]
[1727222717526,1.96013411,2657.8,2656.5,3.8128]
[1727222717825,5.66122753,2658.5,2656.5,0.8128]
[1727222717826,3.0890582,2657.3,2656.5,0.8128]
[1727222718019,3.0890582,2657.3,2656.0,3.20823881]
[1727222718020,3.76359,2657.1,2656.0,0.8128]
[1727222718219,0.07554552,2657.0,2656.3,3.76453]
[1727222718428,0.07554552,2656.9,2656.0,3.23157808]
[1727222718578,6.38777808,2657.6,2656.5,3.76433]
[1727222718579,3.76338,2657.2,2656.5,3.76433]
[1727222718782,4.3132,2657.4,2656.5,3.76433]
[1727222718978,0.07554552,2657.3,2656.6,3.76412]
[1727222719322,0.07554552,2657.2,2656.7,3.76398]
[1727222719993,0.07554552,2657.2,2656.8,3.76392]
[1727222720522,0.8145,2657.1,2656.7,3.76398]
[1727222721292,0.8145,2657.3,2656.5,0.8128]
[1727222721500,0.93994089,2657.2,2657.0,3.76351]
[1727222721714,0.8145,2657.3,2657.1,3.76339]
[1727222721891,0.8145,2657.3,2657.2,3.76335]
[1727222723288,0.8145,2657.9,2657.4,3.76307]
[1727222723518,0.8145,2657.9,2657.6,3.76279]
[1727222723519,0.93988264,2657.8,2657.6,3.76279]
[1727222723702,0.8145,2657.9,2657.7,3.76255]
[1727222723911,0.8145,2657.9,2657.6,3.76279]
[1727222724079,0.8145,2657.9,2657.6,3.76271]
[1727222724581,0.8145,2657.9,2657.7,3.76263]
[1727222725282,0.8145,2657.9,2657.2,3.76332]
[1727222725283,0.8145,2658.4,2658.0,3.76214]
[1727222725514,0.8145,2658.4,2658.1,3.76205]
[1727222725820,0.8145,2658.4,2657.8,3.76242]
[1727222725821,0.8145,2658.2,2657.8,3.76242]
[1727222726127,0.07554552,2658.1,2657.8,3.76242]
[1727222726778,0.07554552,2658.1,2657.8,7.52484]
[1727222727210,0.07554552,2658.1,2657.8,3.76242]
[1727222727395,0.89004552,2658.2,2657.9,3.76236]
[1727222727591,0.8145,2658.2,2657.9,3.76236]
[1727222728021,0.8145,2658.2,2658.0,3.7622]
[1727222728178,0.8145,2658.2,2658.1,3.76208]
[1727222728383,0.8145,2658.2,2658.0,7.52433]
[1727222728693,0.7741,2658.5,2658.1,3.76208]
[1727222729016,0.7741,2658.5,2658.2,3.76186]
[1727222729321,0.7741,2658.5,2658.2,3.73648555]
[1727222729628,0.7741,2658.5,2658.3,3.7618]
[1727222730003,0.7741,2658.5,2658.2,3.73648555]
[1727222730488,0.7741,2658.5,2658.2,7.49831555]
[1727222730692,0.7741,2658.5,2658.3,3.76175]
[1727222731647,0.0387498,2658.7,2658.3,3.76175]
[1727222731852,0.85803478,2658.7,2658.4,0.09781293]
[1727222732208,0.85803478,2658.7,2658.3,3.76175]
[1727222733601,0.85803478,2658.7,2658.5,3.76147]
[1727222733843,0.0387498,2658.7,2658.5,3.76147]
[1727222734004,0.0387498,2658.7,2658.6,0.09678117]
[1727222735213,0.0387498,2658.7,2658.3,3.76176]
[1727222735441,0.11429532,2658.7,2658.6,0.09411451]
[1727222735744,0.57924385,2658.7,2658.6,0.09362258]
[1727222736153,4.34056385,2658.7,2658.2,3.76188]
[1727222736441,4.34056385,2658.7,2658.6,0.09362258]
[1727222736642,4.34056385,2658.7,2658.2,3.76188]
[1727222736937,4.64898338,2658.6,2658.0,7.52427]
[1727222737261,0.07554552,2658.5,2658.3,0.09389037]
[1727222737439,0.07554552,2658.5,2658.1,3.76205]
[1727222737644,0.59836824,2658.5,2658.4,0.0938011]
[1727222737845,0.59836824,2658.5,2658.1,3.76205]
[1727222738344,0.59836824,2658.5,2658.2,0.09397965]
[1727222738552,0.90088016,2658.4,2658.2,0.09397965]
[1727222738736,0.59836824,2658.5,2658.2,0.09397965]
[1727222738939,3.7618,2658.3,2658.2,0.09397965]
[1727222739147,3.76216,2658.1,2657.4,7.52598]
[1727222739340,0.52917152,2658.0,2657.4,3.76299]
[1727222739521,4.29139152,2658.0,2657.5,3.76293]
[1727222745734,0.453626,2658.0,2657.7,3.76256]
[1727222745923,0.453626,2658.0,2657.5,3.76292]
[1727222745924,0.07554552,2658.0,2657.5,3.76292]
[1727222746138,3.76237,2657.9,2657.5,3.76292]
[1727222746363,0.07554552,2657.8,2657.5,3.76292]
[1727222748738,0.8313,2657.7,2657.3,3.76316]
[1727222749043,0.07554552,2657.6,2657.3,3.76316]
[1727222750250,0.07554552,2657.6,2657.2,3.76335]
[1727222751270,0.07554552,2657.6,2657.3,3.7632]
[1727222751446,0.58087433,2657.6,2657.3,3.7632]
[1727222753587,0.58087433,2657.6,2657.4,0.08943094]
[1727222755287,0.50532881,2657.6,2657.4,0.08943094]
[1727222755459,0.90684552,2657.7,2657.4,0.08943094]
[1727222755786,0.07554552,2657.7,2657.4,0.08943094]
[1727222756150,0.07554552,2657.7,2657.4,0.91553094]
[1727222756545,0.07554552,2657.7,2657.4,4.67859094]
[1727222756776,4.22186807,2657.8,2657.4,0.08943094]
[1727222756992,0.49774726,2657.7,2657.4,0.08943094]
[1727222760193,0.49774726,2657.7,2657.4,3.85249094]
[1727222760868,0.49774726,2657.7,2657.5,3.76291]
[1727222761064,0.8313,2657.9,2657.5,4.53041]
[1727222761270,0.8313,2657.9,2657.6,0.08925228]
[1727222761988,0.90684552,2657.9,2657.6,0.08925228]
[1727222762323,0.8313,2657.9,2657.6,0.08925228]
[1727222763296,1.61216167,2657.9,2657.6,0.08925228]
[1727222763459,0.78086167,2657.7,2657.6,0.08925228]
[1727222763658,2.35175796,2657.7,2657.3,3.76312]
[1727222763889,0.78086167,2657.7,2657.6,0.08928835]
[1727222764087,0.78086167,2657.7,2657.3,3.76312]
[1727222764088,1.73300616,2657.7,2657.3,3.76312]
[1727222764289,3.45647408,2657.7,2657.3,3.76312]
[1727222764465,0.62838446,2657.6,2657.4,0.08946701]
[1727222764665,0.25894134,2657.5,2657.4,0.08946701]
[1727222766296,1.84380301,2657.5,2657.4,0.08946701]
[1727222766462,3.41554765,2657.5,2657.4,0.08946701]
[1727222766660,3.41554765,2657.5,2657.2,3.76335]
[1727222766881,1.84380301,2657.5,2657.4,0.08671843]
[1727222767082,1.84380301,2657.5,2657.3,0.08680777]
[1727222767271,1.84380301,2657.5,2657.4,0.08671843]
[1727222767472,3.41643098,2657.5,2657.4,0.08671843]
[1727222767679,3.41643098,2657.5,2657.2,3.76335]
[1727222767961,2.35344826,2657.4,2657.3,0.08680777]
[1727222768182,2.35343755,2657.4,2657.2,3.76335]
[1727222768403,0.78086167,2657.4,2657.2,3.76335]
[1727222768650,1.84380301,2657.5,2657.2,3.76335]
[1727222768790,0.62911417,2657.4,2657.2,3.76335]
[1727222771530,0.24729172,2657.3,2657.1,3.76342]
[1727222771734,0.07554552,2657.2,2656.9,3.76371]
[1727222771901,3.75434573,2657.2,2656.9,3.76371]
[1727222772224,2.35359287,2657.1,2657.0,3.76364]
[1727222772434,2.35359287,2657.1,2656.9,3.76371]
[1727222772594,0.07554552,2657.0,2656.8,3.76392]
[1727222772934,0.51729794,2657.1,2656.8,3.76392]
[1727222773491,0.07554552,2657.0,2656.8,3.76392]
[1727222774906,0.51729794,2657.1,2656.8,3.76382]
[1727222776135,2.87109794,2657.1,2656.8,3.76382]
[1727222776305,1.29815961,2657.1,2656.8,3.76382]
[1727222776512,0.51729794,2657.1,2656.8,3.76382]
[1727222778537,1.14652661,2657.1,2656.8,3.76382]
[1727222778834,2.18161453,2657.2,2656.8,3.76382]
[1727222779130,2.35329781,2657.1,2656.8,3.76382]
[1727222779339,0.6291032,2657.0,2656.8,3.76382]
[1727222779523,2.18161453,2657.2,2656.8,3.76382]
[1727222779696,0.62907226,2657.1,2656.8,3.76382]
[1727222779897,2.18161453,2657.2,2656.8,3.76382]
[1727222780144,0.62906377,2657.1,2656.8,3.76382]
[1727222780307,1.57293438,2657.1,2656.8,3.76382]
[1727222780511,1.33046901,2657.2,2656.8,7.52764]
[1727222780715,1.57305526,2657.1,2656.8,7.52764]
[1727222781033,1.33046901,2657.2,2656.8,7.52764]
[1727222781236,0.6292027,2657.1,2656.9,3.76376]
[1727222781438,0.78086167,2657.1,2656.9,3.76376]
[1727222781637,0.6292027,2657.1,2656.9,3.76376]
[1727222781837,0.78086167,2657.2,2657.0,3.76358]
[1727222782213,1.17134193,2657.3,2656.9,3.76376]
[1727222782214,1.410259,2657.3,2656.9,3.76376]
[1727222782440,2.35471447,2657.2,2656.9,7.52745]
[1727222782609,2.35471447,2657.2,2656.9,3.76369]
[1727222782809,2.35471447,2657.2,2656.9,7.52739]
[1727222783443,1.5738528,2657.1,2657.0,0.08443201]
[1727222783604,0.62954112,2657.1,2657.0,0.08443201]
[1727222783809,2.35489897,2657.2,2657.0,0.08443201]
[1727222784013,1.57403078,2657.1,2657.0,0.08443201]
[1727222784232,0.44591838,2657.1,2657.0,0.08443201]
[1727222784437,2.01994916,2657.1,2657.0,0.08443201]
[1727222785108,2.80423984,2657.1,2657.0,0.08443201]
[1727222786323,2.01994916,2657.1,2657.0,0.08443201]
[1727222787251,2.01994916,2657.1,2656.8,3.76379]
[1727222787545,0.62954112,2657.0,2656.8,3.76379]
[1727222787748,1.41382418,2657.0,2656.8,3.76379]
[1727222787918,1.23020144,2657.1,2656.8,3.76379]
[1727222788118,1.5754136,2657.0,2656.7,4.55615]
[1727222788351,0.78428306,2657.2,2656.9,3.76378]
[1727222788649,1.41450538,2657.1,2656.9,3.76378]
[1727222789424,0.63024504,2657.0,2656.9,3.76378]
[1727222789760,0.78428306,2657.1,2656.9,3.76378]
[1727222790112,2.36002109,2657.1,2656.9,3.76378]
[1727222790412,0.78428306,2657.1,2656.9,3.76378]
[1727222790830,1.41465135,2657.1,2656.9,3.76378]
[1727222791426,1.41465135,2657.1,2656.9,7.52749]
[1727222791720,0.78428306,2657.1,2656.9,3.76371]
[1727222791921,1.41515304,2657.1,2656.9,3.76371]
[1727222792742,0.78428306,2657.2,2656.9,7.52742]
[1727222792946,2.36160454,2657.1,2656.9,7.52742]
[1727222793135,0.63092859,2657.0,2656.9,3.76371]
[1727222793331,0.78428306,2657.1,2656.9,7.52741]
[1727222793545,0.63094336,2657.0,2656.9,7.5274]
[1727222793837,0.63094336,2657.0,2656.9,3.7637]
[1727222794153,0.63095395,2657.0,2656.9,7.5274]
[1727222794452,0.78428306,2657.1,2656.9,3.7637]
[1727222794748,1.41527876,2657.1,2656.9,7.52741]
[1727222794913,1.41527876,2657.1,2656.9,3.7637]
[1727222795112,0.6309957,2657.0,2656.9,3.7637]
[1727222795865,3.76385,2656.9,2656.5,0.7922]
[1727222796173,3.87775967,2657.0,2655.9,4.5573]
[1727222796174,3.76452,2656.4,2655.9,4.5573]
[1727222796314,0.78445456,2656.2,2655.9,0.7922]
[1727222796516,2.36170854,2656.2,2656.0,0.07187267]
[1727222796715,0.78445456,2656.2,2656.0,0.07187267]
[1727222796928,0.78445456,2656.2,2655.8,3.76532]
[1727222797159,0.78445456,2656.2,2656.1,0.07178324]
[1727222797319,0.63048363,2656.2,2656.0,3.76497]
[1727222797514,1.17668185,2656.4,2656.0,3.76497]
[1727222797515,0.78445456,2656.4,2656.1,0.07178324]
[1727222797727,5.65332714,2656.4,2656.1,0.07178324]
[1727222797933,2.36016264,2656.3,2656.1,0.07178324]
[1727222798225,0.78445456,2656.3,2656.2,0.07195643]
[1727222798429,3.27782978,2656.3,2656.2,0.07195643]
[1727222798740,3.7648,2656.2,2655.7,4.55759]
[1727222798930,0.67053542,2656.1,2655.7,4.55759]
[1727222799127,0.04024552,2656.1,2655.7,4.55759]
[1727222799728,1.48414824,2656.1,2655.7,3.76539]
[1727222801415,3.76507,2656.0,2655.5,4.5966798]
[1727222801617,3.80544552,2655.9,2655.5,0.0387498]
[1727222801819,4.33036734,2655.9,2655.5,0.0387498]
[1727222802437,0.56516734,2655.9,2655.5,0.0387498]
[1727222806227,0.52492182,2655.9,2655.5,0.0387498]
[1727222806858,0.52492182,2655.9,2655.5,3.8044998]
[1727222807062,1.44390272,2656.1,2655.6,3.76557]
[1727222807385,0.55,2656.0,2655.6,3.76557]
[1727222809232,5.20883272,2656.1,2655.7,3.76548]
[1727222809462,1.44390272,2656.1,2655.7,3.76548]
[1727222809769,0.7756,2656.1,2655.7,3.76548]
[1727222810262,0.81584552,2656.1,2655.7,3.76548]
[1727222813564,0.81584552,2656.1,2655.8,0.07301688]
[1727222813992,0.81584552,2656.1,2655.7,3.76548]
[1727222814277,0.81584552,2656.1,2655.8,0.07301688]
[1727222814453,1.65039507,2656.1,2655.7,3.76548]
[1727222814772,1.65039507,2656.1,2655.9,0.07292744]
[1727222814979,1.65039507,2656.1,2655.8,0.07301688]
[1727222815279,2.20039507,2656.1,2655.9,0.07292744]
[1727222815485,2.20039507,2656.1,2655.7,3.76548]
[1727222815671,2.20039507,2656.1,2656.0,0.07283801]
[1727222815972,2.20039507,2656.1,2655.7,3.76548]
[1727222816479,2.20039507,2656.1,2655.8,0.07301688]
[1727222816638,2.20039507,2656.1,2655.7,3.76548]
[1727222816842,2.20039507,2656.1,2655.9,0.07292744]
[1727222817043,0.78445456,2656.3,2655.8,0.7762]
[1727222817292,3.80489552,2656.3,2655.8,4.54153]
[1727222817581,3.80489552,2656.3,2655.9,3.83805174]
[1727222817582,0.04024552,2656.3,2655.9,3.83805174]
[1727222817743,0.60393886,2656.3,2655.9,3.83805174]
[1727222818442,0.56369334,2656.3,2655.9,3.83805174]
[1727222819290,0.60393886,2656.3,2655.9,3.83805174]
[1727222820179,0.784,2656.2,2655.9,3.83805174]
[1727222820760,1.29925089,2656.2,2655.9,3.83805174]
[1727222821078,1.29925089,2656.2,2655.9,0.07286174]
[1727222821255,5.06403089,2656.2,2655.9,0.07286174]
[1727222821658,5.06403089,2656.2,2655.7,3.76542]
[1727222822064,5.06403089,2656.2,2655.8,0.5707336]
[1727222822280,0.5888731,2656.1,2655.8,0.5707336]
[1727222826163,4.65290399,2656.2,2655.8,1.0707336]
[1727222829481,0.78445456,2656.4,2656.0,4.54118]
[1727222829786,0.55,2656.4,2656.0,4.54118]
[1727222829951,0.55,2656.4,2656.1,3.76491]
[1727222830382,0.55,2656.4,2656.2,0.07037588]
[1727222830998,0.55,2656.4,2656.0,4.54118]
[1727222831293,0.55,2656.4,2656.1,0.0704653]
[1727222834195,0.55,2656.4,2656.1,0.5704653]
[1727222837056,4.52635,2656.3,2656.1,0.5704653]
[1727222837401,7.47838044,2656.2,2656.1,0.5]
[1727222837564,7.87060773,2656.2,2656.1,0.5]
[1727222837760,7.87060773,2656.2,2656.1,0.57045217]
[1727222838088,9.37266223,2656.2,2656.1,0.57045217]
[1727222838397,9.32980553,2656.2,2656.1,1.07045217]
[1727222838598,9.41830728,2656.2,2656.1,1.07045217]
[1727222839110,4.40262668,2656.2,2656.1,5.95185687]
[1727222839312,0.78304126,2656.3,2656.1,2.18694687]
[1727222839462,0.78304126,2656.3,2656.2,3.76477]
[1727222839793,2.36223719,2656.3,2656.2,3.76477]
[1727222839999,0.6316785,2656.3,2656.2,3.83520172]
[1727222840168,0.78304126,2656.3,2656.2,3.83520172]
[1727222840501,1.41471976,2656.3,2656.2,3.83520172]
[1727222841061,1.41471976,2656.3,2656.2,0.07043172]
[1727222841394,2.75366761,2656.3,2656.2,0.07043172]
[1727222841596,4.40600807,2656.3,2656.2,0.07043172]
[1727222841805,3.14191017,2656.3,2656.2,0.07043172]
[1727222842809,2.84316417,2656.3,2656.2,0.07043172]
[1727222843098,5.04650216,2656.3,2656.2,0.07043172]
[1727222843298,4.03365826,2656.3,2656.2,0.07043172]
[1727222843470,5.09410426,2656.3,2656.2,0.07043172]
[1727222843695,6.35820216,2656.3,2656.2,0.07043172]
[1727222844016,6.75404556,2656.3,2656.2,0.07043172]
[1727222844228,3.21629199,2656.3,2656.2,0.07043172]
[1727222844383,5.49469236,2656.3,2656.2,0.07043172]
[1727222844581,6.75879026,2656.3,2656.2,0.07043172]
[1727222844999,6.75877629,2656.3,2656.2,0.07043172]
[1727222846620,5.99707629,2656.3,2656.2,0.07043172]
[1727222847281,4.41581784,2656.3,2656.2,0.07043172]
[1727222847486,5.60520664,2656.3,2656.2,0.07043172]
[1727222847713,4.03601435,2656.3,2656.2,0.07043172]
[1727222847888,5.6051892,2656.3,2656.2,0.07043172]
[1727222848329,7.84088987,2656.3,2656.2,0.07043172]
[1727222848625,9.76208809,2656.3,2656.2,0.07043172]
[1727222849012,7.80064277,2656.3,2656.2,0.07043172]
[1727222849202,9.80233051,2656.3,2656.2,0.07043172]
[1727222849416,4.03601277,2656.3,2656.2,0.07043172]
[1727222849740,5.3569609,2656.3,2656.2,0.07043172]
[1727222850833,5.39720642,2656.3,2656.2,0.07043172]
[1727222851441,5.3569609,2656.3,2656.2,0.07043172]
[1727222856225,4.41484264,2656.3,2656.2,0.07043172]
[1727222856754,3.15074474,2656.3,2656.2,3.83520172]
[1727222856942,2.84551868,2656.3,2656.2,3.83520172]
[1727222857252,1.58142078,2656.3,2656.2,3.83520172]
[1727222858452,1.58279732,2656.3,2656.2,3.83520172]
[1727222859030,4.41621918,2656.3,2656.2,3.83520172]
[1727222859925,2.75985557,2656.3,2656.2,3.83520172]
[1727222860555,2.75985557,2656.3,2656.2,5.66545516]
[1727222860732,0.78472356,2656.6,2656.5,4.57795]
[1727222860930,2.36861693,2656.6,2656.5,4.57795]
[1727222861131,0.63355735,2656.6,2656.5,4.64385419]
[1727222861331,0.63355735,2656.6,2656.5,5.48468861]
[1727222861559,0.78472356,2656.7,2656.6,3.7642]
[1727222861765,2.36105306,2656.7,2656.6,3.7642]
[1727222861928,2.36105306,2656.7,2656.6,3.8300148]
[1727222862129,1.5763295,2656.7,2656.6,3.8300148]
[1727222862326,0.78472356,2656.8,2656.7,3.76406]
[1727222862529,1.4150954,2656.8,2656.7,3.76406]
[1727222862769,1.4150954,2656.8,2656.7,3.82978541]
[1727222862974,2.36065316,2656.8,2656.7,3.82978541]
[1727222863273,1.5764786,2656.8,2656.7,3.82978541]
[1727222863968,0.63058183,2656.8,2656.7,3.82978541]
[1727222864373,1.41530539,2656.9,2656.7,3.82978541]
[1727222864539,0.78472356,2656.9,2656.8,3.76392]
[1727222864737,1.41513441,2656.9,2656.8,3.82955603]
[1727222864938,2.36075069,2656.9,2656.8,3.82955603]
[1727222866135,1.57602713,2656.9,2656.8,3.82955603]
[1727222866346,1.73033984,2656.9,2656.8,3.82955603]
[1727222866547,0.94561628,2656.9,2656.8,3.82955603]
[1727222866746,0.63041085,2656.9,2656.8,3.82955603]
[1727222867352,0.78472356,2657.0,2656.8,3.82955603]
[1727222868694,1.72968006,2657.0,2656.8,3.82955603]
[1727222868851,0.63041085,2656.9,2656.8,3.82955603]
[1727222869050,0.78472356,2657.0,2656.8,3.82955603]
[1727222869877,2.3594531,2657.0,2656.8,3.82955603]
[1727222870043,0.78472356,2657.0,2656.8,3.82955603]
[1727222870447,0.78472356,2657.1,2656.8,3.82955603]